fUSD/lending_fUSD_20250221
["ID","MTS","AMOUNT","RATE_DAILY","PERIOD"]
[354007335,1740179478541,-500.0,0.00011532,2]
[354007336,1740179478550,-500.0,0.00011532,2]
[354007337,1740179478560,-500.0,0.00011532,2]
[354007338,1740179478570,-500.0,0.00011532,2]
[354007339,1740179478579,-500.0,0.00011532,2]
[354007340,1740179478588,-500.0,0.00011532,2]
[354007341,1740179478598,-500.0,0.00011532,2]
[354007342,1740179478607,-500.0,0.00011532,2]
[354007343,1740179478617,-500.0,0.00011532,2]
[354007344,1740179478627,-500.0,0.00011532,2]
[354007345,1740179478637,-500.0,0.00011532,2]
[354007346,1740179478647,-500.0,0.00011532,2]
[354007347,1740179478657,-219.64,0.00011532,2]
[354007348,1740179478667,-500.0,0.00011532,2]
[354007349,1740179478676,-500.0,0.00011532,2]
[354007350,1740179478685,-500.0,0.00011532,2]
[354007351,1740179478695,-500.0,0.00011532,2]
[354007352,1740179478705,-500.0,0.00011532,2]
[354007353,1740179478714,-318.6,0.00011532,2]
[354007354,1740179478724,-500.0,0.00011532,2]
[354007355,1740179478734,-500.0,0.00011532,2]
[354007356,1740179478744,-500.0,0.00011532,2]
[354007357,1740179478753,-500.0,0.00011532,2]
[354007358,1740179478763,-500.0,0.00011532,2]
[354007359,1740179478772,-500.0,0.00011532,2]
[354007360,1740179478782,-1083.37,0.00011532,2]
[354007361,1740179478792,-500.0,0.00011532,2]
[354007362,1740179478801,-563.59,0.00011532,2]
[354007363,1740179478811,-364.934744,0.00011532,2]
[354007364,1740179478820,-500.0,0.00011532,2]
[354007365,1740179478829,-500.0,0.00011532,2]
[354007366,1740179478840,-500.0,0.00011532,2]
[354007367,1740179478852,-500.0,0.00011532,2]
[354007368,1740179478862,-728.43,0.00011532,2]
[354007369,1740179478871,-639.44,0.00011532,2]
[354007370,1740179478882,-500.0,0.00011532,2]
[354007371,1740179478892,-500.0,0.00011532,2]
[354007372,1740179478901,-500.0,0.00011532,2]
[354007373,1740179478911,-533.39,0.00011532,2]
[354007374,1740179478920,-500.0,0.00011532,2]
[354007375,1740179478931,-500.0,0.00011532,2]
[354007376,1740179478941,-500.0,0.00011532,2]
[354007377,1740179478950,-500.0,0.00011532,2]
[354007378,1740179478959,-500.0,0.00011532,2]
[354007379,1740179478968,-500.0,0.00011532,2]
[354007380,1740179478978,-749.97,0.00011532,2]
[354007381,1740179478987,-500.0,0.00011532,2]
[354007382,1740179479141,-533.85,0.00011532,2]
[354007383,1740179479150,-500.0,0.00011532,2]
[354007384,1740179479159,-500.0,0.00011532,2]
[354007385,1740179479169,-500.0,0.00011532,2]
[354007386,1740179479179,-500.0,0.00011532,2]
[354007387,1740179479188,-981.61,0.00011532,2]
[354007388,1740179479198,-500.0,0.00011532,2]
[354007389,1740179479208,-500.0,0.00011532,2]
[354007390,1740179479218,-500.0,0.00011532,2]
[354007391,1740179479228,-500.0,0.00011532,2]
[354007392,1740179479238,-758.08,0.00011532,2]
[354007393,1740179479247,-578.28,0.00011532,2]
[354007394,1740179479257,-500.0,0.00011532,2]
[354007395,1740179479267,-500.0,0.00011532,2]
[354007396,1740179479277,-500.0,0.00011532,2]
[354007397,1740179479287,-500.0,0.00011532,2]
[354007398,1740179479297,-318.84,0.00011532,2]
[354007399,1740179479307,-500.0,0.00011532,2]
[354007400,1740179479316,-500.0,0.00011532,2]
[354007401,1740179479326,-531.12,0.00011532,2]
[354007402,1740179479336,-1281.69,0.00011532,2]
[354007403,1740179479345,-500.0,0.00011532,2]
[354007404,1740179479355,-500.0,0.00011532,2]
[354007405,1740179479365,-500.0,0.00011532,2]
[354007406,1740179479374,-500.0,0.00011532,2]
[354007407,1740179479384,-500.0,0.00011532,2]
[354007408,1740179479394,-793.43,0.00011532,2]
[354007409,1740179479404,-500.0,0.00011532,2]
[354007410,1740179479414,-500.0,0.00011532,2]
[354007411,1740179479424,-423.84,0.00011532,2]
[354007412,1740179479434,-500.0,0.00011532,2]
[354007413,1740179479445,-1586.42,0.00011532,2]
[354007414,1740179479455,-500.0,0.00011532,2]
[354007415,1740179479467,-500.0,0.00011532,2]
[354007416,1740179479477,-641.28,0.00011532,2]
[354007417,1740179479486,-500.0,0.00011532,2]
[354007418,1740179479496,-500.0,0.00011532,2]
[354007419,1740179479506,-500.0,0.00011532,2]
[354007420,1740179479515,-1880.49,0.00011532,2]
[354007421,1740179479525,-500.0,0.00011532,2]
[354007422,1740179479535,-500.0,0.00011532,2]
[354007423,1740179479544,-500.0,0.00011532,2]
[354007424,1740179479554,-391.248668,0.00011532,2]
[354007425,1740179479564,-500.0,0.00011532,2]
[354007426,1740179479575,-1641.13,0.00011532,2]
[354007427,1740179479585,-500.0,0.00011532,2]
[354007428,1740179479595,-661.16,0.00011532,2]
[354007429,1740179479605,-500.0,0.00011532,2]
[354007430,1740179479614,-500.0,0.00011532,2]
[354007431,1740179479624,-500.0,0.00011532,2]
[354007432,1740179479634,-500.0,0.00011532,2]
[354007433,1740179479643,-500.0,0.00011532,2]
[354007434,1740179479653,-1068.88,0.00011532,2]
[354007435,1740179479663,-2271.45,0.00011532,2]
[354007436,1740179479673,-500.0,0.00011532,2]
[354007437,1740179479683,-619.93,0.00011532,2]
[354007438,1740179479692,-500.0,0.00011532,2]
[354007439,1740179479702,-500.0,0.00011532,2]
[354007440,1740179479712,-588.04,0.00011532,2]
[354007441,1740179479723,-500.0,0.00011532,2]
[354007442,1740179479733,-500.0,0.00011532,2]
[354007443,1740179479743,-539.18,0.00011532,2]
[354007444,1740179479753,-500.0,0.00011532,2]
[354007445,1740179479763,-500.0,0.00011532,2]
[354007446,1740179479772,-500.0,0.00011532,2]
[354007447,1740179479782,-500.0,0.00011532,2]
[354007448,1740179479791,-1566.43,0.00011532,2]
[354007449,1740179479800,-1284.46,0.00011532,2]
[354007450,1740179479809,-500.0,0.00011532,2]
[354007451,1740179479819,-613.25,0.00011532,2]
[354007452,1740179479828,-821.71,0.00011532,2]
[354007453,1740179479837,-500.0,0.00011532,2]
[354007454,1740179479852,-579.37,0.00011532,2]
[354007455,1740179479861,-500.0,0.00011532,2]
[354007456,1740179479871,-500.0,0.00011532,2]
[354007457,1740179479880,-533.44,0.00011532,2]
[354007458,1740179479890,-496.73788905,0.00011532,2]
[354007459,1740179479899,-1279.57,0.00011532,2]
[354007460,1740179479909,-500.0,0.00011533,2]
[354007461,1740179479920,-520.31689034,0.00011533,2]
[354007462,1740179479929,-150.78,0.00011533,2]
[354007463,1740179479938,-500.0,0.00011533,2]
[354007464,1740179479947,-500.0,0.00011533,2]
[354007465,1740179479956,-259.96,0.00011533,2]
[354007466,1740179479965,-500.0,0.00011533,2]
[354007467,1740179479975,-500.0,0.00011533,2]
[354007468,1740179479984,-500.0,0.00011533,2]
[354007469,1740179479994,-500.0,0.00011533,2]
[354007470,1740179480003,-500.0,0.00011533,2]
[354007471,1740179480013,-500.0,0.00011533,2]
[354007472,1740179480023,-500.0,0.00011533,2]
[354007473,1740179480033,-401.5,0.00011533,2]
[354007474,1740179480042,-500.0,0.00011533,2]
[354007475,1740179480051,-500.0,0.00011533,2]
[354007476,1740179480060,-374.08,0.00011533,2]
[354007477,1740179480069,-457.64,0.00011533,2]
[354007478,1740179480079,-500.0,0.00011533,2]
[354007479,1740179480088,-500.0,0.00011533,2]
[354007480,1740179480098,-500.0,0.00011533,2]
[354007481,1740179480108,-500.0,0.00011533,2]
[354007482,1740179480118,-500.0,0.00011533,2]
[354007483,1740179480128,-500.0,0.00011533,2]
[354007484,1740179480137,-500.0,0.00011533,2]
[354007485,1740179480147,-508.64,0.00011533,2]
[354007486,1740179480157,-1458.11,0.00011533,2]
[354007487,1740179480167,-500.0,0.00011533,2]
[354007488,1740179480176,-1068.38,0.00011533,2]
[354007489,1740179480185,-598.4,0.00011533,2]
[354007490,1740179480195,-500.0,0.00011533,2]
[354007491,1740179480205,-500.0,0.00011533,2]
[354007492,1740179480214,-500.0,0.00011533,2]
[354007493,1740179480223,-706.12,0.00011533,2]
[354007494,1740179480232,-344.09,0.00011533,2]
[354007495,1740179480242,-500.0,0.00011533,2]
[354007496,1740179480252,-660.98,0.00011533,2]
[354007497,1740179480262,-630.75,0.00011533,2]
[354007498,1740179480272,-575.05,0.00011533,2]
[354007499,1740179480281,-337.2,0.00011533,2]
[354007500,1740179480291,-500.0,0.00011533,2]
[354007501,1740179480300,-638.73,0.00011533,2]
[354007502,1740179480310,-703.61,0.00011533,2]
[354007503,1740179480320,-500.0,0.00011533,2]
[354007504,1740179480329,-479.64,0.00011533,2]
[354007505,1740179480339,-500.0,0.00011533,2]
[354007506,1740179480349,-500.0,0.00011533,2]
[354007507,1740179480358,-500.0,0.00011533,2]
[354007508,1740179480368,-862.1,0.00011533,2]
[354007509,1740179480378,-500.0,0.00011533,2]
[354007510,1740179480388,-500.0,0.00011533,2]
[354007511,1740179480399,-500.0,0.00011533,2]
[354007512,1740179480409,-749.22,0.00011533,2]
[354007513,1740179480419,-584.21,0.00011533,2]
[354007514,1740179480431,-852.01,0.00011533,2]
[354007515,1740179480440,-564.47,0.00011533,2]
[354007516,1740179480451,-600.81,0.00011533,2]
[354007517,1740179480461,-2467.17,0.00011533,2]
[354007518,1740179480471,-500.0,0.00011533,2]
[354007519,1740179480483,-151.0,0.00011533,2]
[354007520,1740179480494,-500.0,0.00011533,2]
[354007521,1740179480504,-500.0,0.00011533,2]
[354007522,1740179480515,-500.0,0.00011533,2]
[354007523,1740179480525,-1091.04,0.00011533,2]
[354007524,1740179480535,-500.0,0.00011533,2]
[354007525,1740179480545,-500.0,0.00011533,2]
[354007526,1740179480555,-500.0,0.00011533,2]
[354007527,1740179480565,-506.66,0.00011533,2]
[354007528,1740179480575,-594.02,0.00011533,2]
[354007529,1740179480584,-500.0,0.00011533,2]
[354007530,1740179480594,-500.0,0.00011533,2]
[354007531,1740179480604,-500.0,0.00011533,2]
[354007532,1740179480614,-1000.0,0.00011533,2]
[354007533,1740179480624,-673.82,0.00011533,2]
[354007534,1740179480634,-372.96,0.00011534,2]
[354007535,1740179480644,-500.0,0.00011534,2]
[354007536,1740179480653,-500.0,0.00011534,2]
[354007537,1740179480663,-500.0,0.00011534,2]
[354007538,1740179480672,-500.0,0.00011534,2]
[354007539,1740179480681,-500.0,0.00011534,2]
[354007540,1740179480690,-500.0,0.00011534,2]
[354007541,1740179480699,-500.0,0.00011534,2]
[354007542,1740179480709,-500.0,0.00011534,2]
[354007543,1740179480718,-500.0,0.00011534,2]
[354007544,1740179480727,-500.0,0.00011534,2]
[354007545,1740179480737,-500.0,0.00011534,2]
[354007546,1740179480746,-500.0,0.00011534,2]
[354007547,1740179480756,-500.0,0.00011534,2]
[354007548,1740179480765,-1249.92,0.00011534,2]
[354007549,1740179480774,-500.0,0.00011534,2]
[354007550,1740179480783,-690.35,0.00011534,2]
[354007551,1740179480793,-500.0,0.00011534,2]
[354007552,1740179480803,-500.0,0.00011534,2]
[354007553,1740179480813,-500.0,0.00011534,2]
[354007554,1740179480822,-500.0,0.00011534,2]
[354007555,1740179480832,-500.0,0.00011534,2]
[354007556,1740179480847,-500.0,0.00011534,2]
[354007557,1740179480858,-500.0,0.00011534,2]
[354007558,1740179480868,-500.0,0.00011534,2]
[354007559,1740179480878,-331.6,0.00011534,2]
[354007560,1740179480888,-500.0,0.00011534,2]
[354007561,1740179480899,-500.0,0.00011534,2]
[354007562,1740179480909,-504.1,0.00011534,2]
[354007563,1740179480921,-500.0,0.00011534,2]
[354007564,1740179480931,-542.66,0.00011534,2]
[354007565,1740179480941,-500.0,0.00011534,2]
[354007566,1740179480950,-500.0,0.00011534,2]
[354007567,1740179480960,-500.0,0.00011534,2]
[354007568,1740179480969,-500.0,0.00011534,2]
[354007569,1740179480978,-500.0,0.00011534,2]
[354007570,1740179480988,-500.0,0.00011534,2]
[354007571,1740179480997,-500.0,0.00011534,2]
[354007572,1740179481006,-500.0,0.00011534,2]
[354007573,1740179481015,-500.0,0.00011534,2]
[354007574,1740179481025,-500.0,0.00011534,2]
[354007575,1740179481034,-1002.86,0.00011534,2]
[354007576,1740179481044,-500.0,0.00011534,2]
[354007577,1740179481053,-500.0,0.00011534,2]
[354007578,1740179481063,-482.56432207,0.00011554,2]
[354007579,1740179481072,-500.0,0.00011613,2]
[354007580,1740179481082,-500.0,0.00011613,2]
[354007581,1740179481092,-843.52,0.00011613,2]
[354007582,1740179481101,-808.86,0.00011613,2]
[354007583,1740179481110,-596.77,0.00011613,2]
[354007584,1740179481119,-555.97,0.00011613,2]
[354007585,1740179481129,-627.62,0.00011613,2]
[354007586,1740179481139,-500.0,0.00011613,2]
[354007587,1740179481148,-724.82,0.00011613,2]
[354007588,1740179481158,-609.83,0.00011613,2]
[354007589,1740179481168,-845.61,0.00011613,2]
[354007590,1740179481177,-500.0,0.00011613,2]
[354007591,1740179481187,-506.36,0.00011613,2]
[354007592,1740179481196,-500.0,0.00011613,2]
[354007593,1740179481205,-534.52,0.00011613,2]
[354007594,1740179481215,-563.37,0.00011613,2]
[354007595,1740179481224,-805.54,0.00011613,2]
[354007596,1740179481234,-500.0,0.00011613,2]
[354007597,1740179481243,-502.72,0.00011613,2]
[354007598,1740179481252,-500.0,0.00011613,2]
[354007599,1740179481261,-729.47,0.00011613,2]
[354007600,1740179481271,-500.0,0.00011613,2]
[354007601,1740179481280,-500.0,0.00011613,2]
[354007602,1740179481289,-500.0,0.00011613,2]
[354007603,1740179481299,-1451.77,0.00011613,2]
[354007604,1740179481308,-1479.34,0.00011613,2]
[354007605,1740179481318,-621.96,0.00011613,2]
[354007606,1740179481327,-500.0,0.00011613,2]
[354007607,1740179481336,-729.4,0.00011613,2]
[354007608,1740179481345,-476.9,0.00011613,2]
[354007609,1740179481355,-744.69,0.00011613,2]
[354007610,1740179481364,-583.1,0.00011613,2]
[354007611,1740179481373,-500.0,0.00011613,2]
[354007612,1740179481382,-500.0,0.00011613,2]
[354007613,1740179481392,-1000.0,0.00011614,2]
[354007614,1740179481402,-500.0,0.00011614,2]
[354007615,1740179481411,-500.0,0.00011615,2]
[354007616,1740179481420,-500.0,0.00011615,2]
[354007617,1740179481429,-500.0,0.00011615,2]
[354007618,1740179481439,-500.0,0.00011615,2]
[354007619,1740179481449,-500.0,0.00011615,2]
[354007620,1740179481459,-500.0,0.00011615,2]
[354007621,1740179481468,-500.0,0.00011615,2]
[354007622,1740179481477,-402.65,0.00011615,2]
[354007623,1740179481487,-500.0,0.00011615,2]
[354007624,1740179481496,-500.0,0.00011615,2]
[354007625,1740179481505,-500.0,0.00011615,2]
[354007626,1740179481514,-500.0,0.00011615,2]
[354007627,1740179481524,-500.0,0.00011615,2]
[354007628,1740179481533,-419.6,0.00011615,2]
[354007629,1740179481668,-596.36,0.00011615,2]
[354007630,1740179481679,-500.0,0.00011615,2]
[354007631,1740179481689,-500.0,0.00011615,2]
[354007632,1740179481701,-1405.8,0.00011615,2]
[354007633,1740179481710,-500.0,0.00011615,2]
[354007634,1740179481721,-500.0,0.00011615,2]
[354007635,1740179481731,-500.0,0.00011615,2]
[354007636,1740179481741,-500.0,0.00011615,2]
[354007637,1740179481751,-254.03,0.00011615,2]
[354007638,1740179481760,-462.45,0.00011615,2]
[354007639,1740179481769,-500.0,0.00011615,2]
[354007640,1740179481778,-500.0,0.00011615,2]
[354007641,1740179481787,-500.0,0.00011615,2]
[354007642,1740179481796,-500.0,0.00011615,2]
[354007643,1740179481806,-500.0,0.00011615,2]
[354007644,1740179481815,-619.56,0.00011615,2]
[354007645,1740179481824,-500.0,0.00011615,2]
[354007646,1740179481834,-642.37,0.00011615,2]
[354007647,1740179481846,-500.0,0.00011615,2]
[354007648,1740179481855,-500.0,0.00011615,2]
[354007649,1740179481864,-500.0,0.00011615,2]
[354007650,1740179481873,-500.0,0.00011615,2]
[354007651,1740179481882,-500.0,0.00011615,2]
[354007652,1740179481892,-500.0,0.00011615,2]
[354007653,1740179481902,-500.0,0.00011615,2]
[354007654,1740179481910,-482.79,0.00011615,2]
[354007655,1740179481921,-553.88,0.00011615,2]
[354007656,1740179481930,-500.0,0.00011615,2]
[354007657,1740179481939,-500.0,0.00011615,2]
[354007658,1740179481949,-500.0,0.00011615,2]
[354007659,1740179481958,-500.0,0.00011615,2]
[354007660,1740179481967,-500.0,0.00011615,2]
[354007661,1740179481976,-639.84,0.00011615,2]
[354007662,1740179481985,-500.0,0.00011615,2]
[354007663,1740179481994,-500.0,0.00011615,2]
[354007664,1740179482004,-500.0,0.00011615,2]
[354007665,1740179482013,-500.0,0.00011615,2]
[354007666,1740179482023,-500.0,0.00011615,2]
[354007667,1740179482033,-500.0,0.00011615,2]
[354007668,1740179482042,-1083.37,0.00011615,2]
[354007669,1740179482051,-500.0,0.00011615,2]
[354007670,1740179482061,-563.59,0.00011615,2]
[354007671,1740179482070,-364.934744,0.00011615,2]
[354007672,1740179482080,-407.85,0.00011615,2]
[354007673,1740179482089,-500.0,0.00011615,2]
[354007674,1740179482098,-728.43,0.00011615,2]
[354007675,1740179482107,-639.44,0.00011615,2]
[354007676,1740179482116,-500.0,0.00011615,2]
[354007677,1740179482126,-500.0,0.00011615,2]
[354007678,1740179482135,-500.0,0.00011615,2]
[354007679,1740179482145,-533.39,0.00011615,2]
[354007680,1740179482154,-500.0,0.00011615,2]
[354007681,1740179482164,-500.0,0.00011615,2]
[354007682,1740179482173,-500.0,0.00011615,2]
[354007683,1740179482182,-500.0,0.00011615,2]
[354007684,1740179482191,-500.0,0.00011615,2]
[354007685,1740179482200,-500.0,0.00011615,2]
[354007686,1740179482209,-749.97,0.00011615,2]
[354007687,1740179482219,-500.0,0.00011615,2]
[354007688,1740179482228,-533.85,0.00011615,2]
[354007689,1740179482237,-500.0,0.00011615,2]
[354007690,1740179482246,-981.61,0.00011615,2]
[354007691,1740179482256,-500.0,0.00011615,2]
[354007692,1740179482265,-585.45321727,0.00011615,2]
[354007693,1740179482274,-500.0,0.00011615,2]
[354007694,1740179482284,-500.0,0.00011615,2]
[354007695,1740179482293,-500.0,0.00011615,2]
[354007696,1740179482302,-758.08,0.00011615,2]
[354007697,1740179482311,-578.28,0.00011615,2]
[354007698,1740179482321,-500.0,0.00011615,2]
[354007699,1740179482331,-500.0,0.00011615,2]
[354007700,1740179482340,-500.0,0.00011615,2]
[354007701,1740179482350,-500.0,0.00011615,2]
[354007702,1740179482359,-500.0,0.00011615,2]
[354007703,1740179482368,-531.12,0.00011615,2]
[354007704,1740179482377,-1281.69,0.00011615,2]
[354007705,1740179482387,-500.0,0.00011615,2]
[354007706,1740179482398,-500.0,0.00011615,2]
[354007707,1740179482407,-500.0,0.00011615,2]
[354007708,1740179482417,-500.0,0.00011615,2]
[354007709,1740179482426,-500.0,0.00011615,2]
[354007710,1740179482435,-793.43,0.00011615,2]
[354007711,1740179482445,-500.0,0.00011615,2]
[354007712,1740179482455,-500.0,0.00011615,2]
[354007713,1740179482465,-500.0,0.00011615,2]
[354007714,1740179482474,-1586.42,0.00011615,2]
[354007715,1740179482483,-500.0,0.00011615,2]
[354007716,1740179482493,-500.0,0.00011615,2]
[354007717,1740179482502,-641.28,0.00011615,2]
[354007718,1740179482512,-500.0,0.00011615,2]
[354007719,1740179482522,-500.0,0.00011615,2]
[354007720,1740179482532,-500.0,0.00011615,2]
[354007721,1740179482543,-1880.49,0.00011615,2]
[354007722,1740179482552,-500.0,0.00011615,2]
[354007723,1740179482562,-248.2,0.00011615,2]
[354007724,1740179482571,-500.0,0.00011615,2]
[354007725,1740179482580,-391.248668,0.00011615,2]
[354007726,1740179482590,-500.0,0.00011615,2]
[354007727,1740179482600,-1641.13,0.00011615,2]
[354007728,1740179482609,-602.70612345,0.00011615,2]
[354007729,1740179482619,-661.16,0.00011615,2]
[354007730,1740179482628,-500.0,0.00011615,2]
[354007731,1740179482637,-500.0,0.00011615,2]
[354007732,1740179482647,-500.0,0.00011615,2]
[354007733,1740179482656,-500.0,0.00011615,2]
[354007734,1740179482666,-500.0,0.00011615,2]
[354007735,1740179482675,-1068.88,0.00011615,2]
[354007736,1740179482684,-2271.45,0.00011615,2]
[354007737,1740179482694,-515.94763541,0.00011615,2]
[354007738,1740179482703,-619.93,0.00011615,2]
[354007739,1740179482712,-500.0,0.00011615,2]
[354007740,1740179482722,-500.0,0.00011615,2]
[354007741,1740179482731,-588.04,0.00011615,2]
[354007742,1740179482741,-500.0,0.00011615,2]
[354007743,1740179482750,-507.29014886,0.00011615,2]
[354007744,1740179482760,-539.18,0.00011615,2]
[354007745,1740179482769,-500.0,0.00011615,2]
[354007746,1740179482778,-500.0,0.00011615,2]
[354007747,1740179482787,-500.0,0.00011615,2]
[354007748,1740179482796,-500.0,0.00011615,2]
[354007749,1740179482806,-1566.43,0.00011615,2]
[354007750,1740179482815,-1284.46,0.00011615,2]
[354007751,1740179482824,-500.0,0.00011615,2]
[354007752,1740179482834,-821.71,0.00011615,2]
[354007753,1740179482847,-291.22779576,0.00011615,2]
[354007754,1740179482856,-579.37,0.00011615,2]
[354007755,1740179482865,-500.0,0.00011615,2]
[354007756,1740179482875,-500.0,0.00011615,2]
[354007757,1740179482885,-533.44,0.00011615,2]
[354007758,1740179482895,-1279.57,0.00011615,2]
[354007759,1740179482904,-424.4,0.00011616,2]
[354007760,1740179482913,-371.28072895,0.00011616,2]
[354007761,1740179482924,-500.0,0.00011616,2]
[354007762,1740179482934,-500.0,0.00011616,2]
[354007763,1740179482943,-500.0,0.00011616,2]
[354007764,1740179482952,-500.0,0.00011616,2]
[354007765,1740179482961,-500.0,0.00011616,2]
[354007766,1740179482971,-500.0,0.00011616,2]
[354007767,1740179482980,-500.0,0.00011616,2]
[354007768,1740179482989,-500.0,0.00011616,2]
[354007769,1740179482999,-500.0,0.00011616,2]
[354007770,1740179483008,-500.0,0.00011616,2]
[354007771,1740179483018,-500.0,0.00011616,2]
[354007772,1740179483027,-235.44,0.00011616,2]
[354007773,1740179483036,-500.0,0.00011616,2]
[354007774,1740179483046,-500.0,0.00011616,2]
[354007775,1740179483058,-418.55,0.00011616,2]
[354007776,1740179483067,-500.0,0.00011616,2]
[354007777,1740179483076,-500.0,0.00011616,2]
[354007778,1740179483086,-331.4,0.00011616,2]
[354007779,1740179483095,-552.5,0.00011616,2]
[354007780,1740179483105,-337.7,0.00011616,2]
[354007781,1740179483115,-1249.92,0.00011616,2]
[354007782,1740179483124,-500.0,0.00011616,2]
[354007783,1740179483134,-500.0,0.00011616,2]
[354007784,1740179483144,-690.35,0.00011616,2]
[354007785,1740179483153,-500.0,0.00011616,2]
[354007786,1740179483162,-459.72,0.00011616,2]
[354007787,1740179483175,-500.0,0.00011616,2]
[354007788,1740179483183,-500.0,0.00011616,2]
[354007789,1740179483193,-500.0,0.00011616,2]
[354007790,1740179483202,-500.0,0.00011616,2]
[354007791,1740179483211,-383.0,0.00011616,2]
[354007792,1740179483220,-446.3,0.00011616,2]
[354007793,1740179483230,-500.0,0.00011616,2]
[354007794,1740179483239,-500.0,0.00011616,2]
[354007795,1740179483249,-1458.11,0.00011616,2]
[354007796,1740179483258,-500.0,0.00011616,2]
[354007797,1740179483267,-500.0,0.00011616,2]
[354007798,1740179483276,-500.0,0.00011616,2]
[354007799,1740179483285,-500.0,0.00011616,2]
[354007800,1740179483295,-1068.38,0.00011616,2]
[354007801,1740179483305,-500.0,0.00011616,2]
[354007802,1740179483314,-598.4,0.00011616,2]
[354007803,1740179483323,-500.0,0.00011616,2]
[354007804,1740179483332,-500.0,0.00011616,2]
[354007805,1740179483342,-500.0,0.00011616,2]
[354007806,1740179483350,-500.0,0.00011616,2]
[354007807,1740179483359,-504.1,0.00011616,2]
[354007808,1740179483369,-500.0,0.00011616,2]
[354007809,1740179483378,-500.0,0.00011616,2]
[354007810,1740179483387,-542.66,0.00011616,2]
[354007811,1740179483397,-500.0,0.00011616,2]
[354007812,1740179483406,-500.0,0.00011616,2]
[354007813,1740179483415,-500.0,0.00011616,2]
[354007814,1740179483425,-706.12,0.00011616,2]
[354007815,1740179483434,-500.0,0.00011616,2]
[354007816,1740179483445,-500.0,0.00011616,2]
[354007817,1740179483454,-660.98,0.00011616,2]
[354007818,1740179483464,-500.0,0.00011616,2]
[354007819,1740179483473,-575.05,0.00011616,2]
[354007820,1740179483483,-500.0,0.00011616,2]
[354007821,1740179483492,-500.0,0.00011616,2]
[354007822,1740179483502,-638.73,0.00011616,2]
[354007823,1740179483511,-703.61,0.00011616,2]
[354007824,1740179483520,-500.0,0.00011616,2]
[354007825,1740179483529,-500.0,0.00011616,2]
[354007826,1740179483538,-500.0,0.00011616,2]
[354007827,1740179483547,-581.76,0.00011616,2]
[354007828,1740179483556,-500.0,0.00011616,2]
[354007829,1740179483566,-500.0,0.00011616,2]
[354007830,1740179483575,-500.0,0.00011616,2]
[354007831,1740179483584,-500.0,0.00011616,2]
[354007832,1740179483593,-862.1,0.00011616,2]
[354007833,1740179483603,-500.0,0.00011616,2]
[354007834,1740179483612,-500.0,0.00011616,2]